Workbook

Sheet Informacja
G22: Военно-статистическое oб3oръне россійской имперіи, Cанкт Петербургъ 1849-1851.
G26: Wybrane dane scalone dla całego obszaru Królestwa Polskiego

Sheet Dane scalone
A1: gubernia | B1: powiat | C1: Grunty uprawne | D1: % gruntó uprawnych | E1: Lasy | F1: % lasów | G1: Łąki | H1: % łąk | I1: Wody, nieużytki, drogi, grunty zabudowane | J1: % wody, nieużytki, drogi, grunty zabudowane | K1: Powierzchnia | L1: Ludność ogółem | M1: Gęstość zaludnienia na km kw. | N1: pow. km kw. | O1: Mężczyźni ogółem | P1: % mężczyzn | Q1: Kobiety ogółem | R1: % kobiet | S1: Ludność miejska | T1: % ludności miejskiej | U1: Ludność wiejska | V1: % ludności wiejskiej | W1: Duchowieństwo | X1: % duchowieństwa | Y1: Szlachta rodowa ogółem | Z1: % szlachty rodowej | AA1: Szlachta rodowa - mężczyźni | AB1: Szlachta rodowa -% mężczyzn | AC1: Szlachta rodowa - kobiety | AD1: Szlachta rodowa -% kobiet | AE1: Mieszczanie ogółem | AF1: % mieszczan | AG1: Mieszczanie - mężczyźni | AH1: Mieszczanie - % mężczyzn | AI1: Mieszczanie - kobiety | AJ1: Mieszczanie - % kobiet | AK1: Chłopi ogółem | AL1: % chłopów | AM1: Chłopi - mężczyźni | AN1: Chłopi - % mężczyzn | AO1: Chłopi - kobiety | AP1: Chłopi - % kobiet | AQ1: Dzierżawcy, koloniści, emeryci | AR1: %dzierżawców, kolonistów, emerytów | AS1: Urzędnicy i oficjaliści | AT1: % urzędników i oficjalistów | AU1: Kupcy i kramarze | AV1: % kupców i kramarzy | AW1: Katolicy | AX1: % katolików | AY1: Ewangelicy | AZ1: % ewangelików | BA1: Prawosławni | BB1: % prawosławnych | BC1: Wyz. Mojżeszowego | BD1: % wyzn. Mojżeszowego | BE1: Wyzn. innych wyznań | BF1: % wyzn. Innych wyznań | BG1: Greko-katolicy | BH1: % greko-katolików | BI1: Konie | BJ1: Obsada koni na 100 dziesięcin ziemi uprawnej | BK1: Bydło rogate | BL1: Obsada bydła na 100 dzisięcin ziemi uprawnej | BM1: Owce | BN1: Obsada owiec na 100 dzisięcin ziemi uprawnej | BO1: Trzoda chlewna | BP1: Obsada trzody chlewnej na 100 dziesięcin ziemi uprawnej | BQ1: Kozy | BR1: Obsada kóz na 100 dzisięcin ziemi uprawnej.
A2: augustowska | B2: mariampolski | C2: 124139 | D2: 34.8268742 | E2: 136582 | F2: 38.31772555 | G2: 44182 | H2: 12.39514541 | I2: 51543 | J2: 14.46025485 | K2: 356446 | L2: 134773 | M2: =L2/N2 -> 34.60825916 | N2: =K2*0.0109252 -> 3894.243839 | O2: 65707 | P2: 48.75383052 | Q2: 69066 | R2: 51.24616948 | S2: 13235 | T2: =S2/$L$2*100 -> 9.820216215 | U2: 121538 | V2: =U2/$L$2*100 -> 90.17978378 | W2: 60 | X2: =W2/$L$2*100 -> 0.04451930283 | Y2: 484 | Z2: =Y2/$L$2*100 -> 0.3591223761 | AA2: 211 | AB2: =AA2/Y2*100 -> 43.59504132 | AC2: 273 | AD2: =AC2/Y2*100 -> 56.40495868 | AE2: 12642 | AF2: =AE2/$L$2*100 -> 9.380217106 | AG2: 5603 | AH2: =AG2/AE2*100 -> 44.32051891 | AI2: 7039 | AJ2: =AI2/AE2*100 -> 55.67948109 | AK2: 119026 | AL2: =AK2/$L$2*100 -> 88.31590897 | AM2: 58392 | AN2: =AM2/AK2*100 -> 49.05818897 | AO2: 60634 | AP2: =AO2/AK2*100 -> 50.94181103 | AQ2: 2077 | AR2: =AQ2/$L$2*100 -> 1.541109866 | AS2: 201 | AT2: =AS2/$L$2*100 -> 0.1491396645 | AU2: 283 | AV2: =AU2/$L$2*100 -> 0.2099827117 | AW2: =488717/5 -> 97743.4 | AX2: 83.43212136 | AY2: =30009/5 -> 6001.8 | AZ2: 5.123035478 | BA2: =550/5 -> 110 | BB2: 0.09389414886 | BC2: =86024/5 -> 17204.8 | BD2: 14.68572775 | BE2: =4118/5 -> 823.6 | BF2: 0.7030111 | BG2: =7644/5 -> 1528.8 | BH2: 1.304957952 | BI2: =30788/5 -> 6157.6 | BJ2: 4.513529006 | BK2: =132417/5 -> 26483.4 | BL2: 19.41236749 | BM2: =193702/5 -> 38740.4 | BN2: 28.39676483 | BO2: =37853/5 -> 7570.6 | BP2: 5.549259889 | BQ2: =6243/5 -> 1248.6 | BR2: 0.9152254639
A3: augustowska | B3: kalwaryjski | C3: 144622 | D3: 64.98959696 | E3: 13322 | F3: 5.986581645 | G3: 30276 | H3: 13.60529544 | I3: 34311 | J3: 15.41852596 | K3: 222531 | L3: 104241 | M3: =L3/N3 -> 42.87643352 | N3: =K3*0.0109252 -> 2431.195681 | O3: 51865 | P3: 49.75489491 | Q3: 52376 | R3: 50.24510509 | S3: 20290 | T3: 19.46451013 | U3: 83951 | V3: 80.53548987 | W3: 38 | X3: 0.03645398644 | Y3: 362 | Z3: 0.3472721866 | AA3: 211 | AB3: =AA3/Y3*100 -> 58.28729282 | AC3: 151 | AD3: =AC3/Y3*100 -> 41.71270718 | AE3: 20026 | AF3: 19.21125085 | AG3: 9690 | AH3: =AG3/AE3*100 -> 48.38709677 | AI3: 10336 | AJ3: =AI3/AE3*100 -> 51.61290323 | AK3: 82448 | AL3: 79.09363878 | AM3: 40711 | AN3: =AM3/AK3*100 -> 49.37778964 | AO3: 41737 | AP3: =AO3/AK3*100 -> 50.62221036 | AQ3: 1079 | AR3: 1.035101352 | AS3: 148 | AT3: 0.141978684 | AU3: 140 | AV3: 0.1343041606 | AW3: =488717/5 -> 97743.4 | AX3: 83.43212136 | AY3: =30009/5 -> 6001.8 | AZ3: 5.123035478 | BA3: =550/5 -> 110 | BB3: 0.09389414886 | BC3: =86024/5 -> 17204.8 | BD3: 14.68572775 | BE3: =4118/5 -> 823.6 | BF3: 0.7030111 | BG3: =7644/5 -> 1528.8 | BH3: 1.304957952 | BI3: =30788/5 -> 6157.6 | BJ3: 4.513529006 | BK3: =132417/5 -> 26483.4 | BL3: 19.41236749 | BM3: =193702/5 -> 38740.4 | BN3: 28.39676483 | BO3: =37853/5 -> 7570.6 | BP3: 5.549259889 | BQ3: =6243/5 -> 1248.6 | BR3: 0.9152254639
A4: augustowska | B4: sejneński | C4: 73889 | D4: 27.80813669 | E4: 80927 | F4: 30.45688909 | G4: 20127 | H4: 7.574799594 | I4: 90767 | J4: 34.16017463 | K4: 265710 | L4: 83497 | M4: 28.76295994 | N4: 2902.934892 | O4: 41826 | P4: 50.09281771 | Q4: 41671 | R4: 49.90718229 | S4: 11850 | T4: 14.19212666 | U4: 71647 | V4: 85.80787334 | W4: 44 | X4: 0.05269650407 | Y4: 580 | Z4: 0.6946357354 | AA4: 286 | AB4: 49.31034483 | AC4: 294 | AD4: 50.68965517 | AE4: 11610 | AF4: 13.90469119 | AG4: 5788 | AH4: 49.8535745 | AI4: 5822 | AJ4: 50.1464255 | AK4: 70011 | AL4: 83.8485215 | AM4: 34562 | AN4: 49.36652812 | AO4: 35449 | AP4: 50.63347188 | AQ4: 1017 | AR4: 1.218007833 | AS4: 110 | AT4: 0.1317412602 | AU4: 125 | AV4: 0.1497059775 | AW4: 97743.4 | AX4: 83.43212136 | AY4: 6001.8 | AZ4: 5.123035478 | BA4: 110 | BB4: 0.09389414886 | BC4: 17204.8 | BD4: 14.68572775 | BE4: 823.6 | BF4: 0.7030111 | BG4: 1528.8 | BH4: 1.304957952 | BI4: 6157.6 | BJ4: 4.513529006 | BK4: 26483.4 | BL4: 19.41236749 | BM4: 38740.4 | BN4: 28.39676483 | BO4: 7570.6 | BP4: 5.549259889 | BQ4: 1248.6 | BR4: 0.9152254639
A5: augustowska | B5: augustowski | C5: 151597 | D5: 35.01336123 | E5: 171170 | F5: 39.53400821 | G5: 41395 | H5: 9.560730676 | I5: 68807 | J5: 15.89189988 | K5: 432969 | L5: 113209 | M5: 23.93286856 | N5: 4730.272919 | O5: 56812 | P5: 50.18328931 | Q5: 56397 | R5: 49.81671069 | S5: 32424 | T5: 28.64083244 | U5: 80785 | V5: 71.35916756 | W5: 60 | X5: 0.05299931984 | Y5: 1612 | Z5: 1.42391506 | AA5: 815 | AB5: 50.55831266 | AC5: 797 | AD5: 49.44168734 | AE5: 31858 | AF5: 28.14087219 | AG5: 15687 | AH5: 49.24037918 | AI5: 16171 | AJ5: 50.75962082 | AK5: 77636 | AL5: 68.57758659 | AM5: 38442 | AN5: 49.5156886 | AO5: 39194 | AP5: 50.4843114 | AQ5: 1585 | AR5: 1.400065366 | AS5: 175 | AT5: 0.1545813495 | AU5: 283 | AV5: 0.2499801253 | AW5: 97743.4 | AX5: 83.43212136 | AY5: 6001.8 | AZ5: 5.123035478 | BA5: 110 | BB5: 0.09389414886 | BC5: 17204.8 | BD5: 14.68572775 | BE5: 823.6 | BF5: 0.7030111 | BG5: 1528.8 | BH5: 1.304957952 | BI5: 6157.6 | BJ5: 4.513529006 | BK5: 26483.4 | BL5: 19.41236749 | BM5: 38740.4 | BN5: 28.39676483 | BO5: 7570.6 | BP5: 5.549259889 | BQ5: 1248.6 | BR5: 0.9152254639
A6: augustowska | B6: łomżyński | C6: 187880 | D6: 44.65922029 | E6: 110649 | F6: 26.30135228 | G6: 46139 | H6: 10.96727574 | I6: 76029 | J6: 18.07215169 | K6: 420697 | L6: 150046 | M6: 32.64567188 | N6: 4596.198864 | O6: 75744 | P6: 50.48051931 | Q6: 74302 | R6: 49.51948069 | S6: 26690 | T6: 17.78787838 | U6: 123356 | V6: 82.21212162 | W6: 129 | X6: 0.08597363475 | Y6: 6492 | Z6: 4.326673154 | AA6: 3305 | AB6: 50.90881084 | AC6: 3187 | AD6: 49.09118916 | AE6: 25955 | AF6: 17.2980286 | AG6: 12946 | AH6: 49.8786361 | AI6: 13009 | AJ6: 50.1213639 | AK6: 115732 | AL6: 77.13101316 | AM6: 57956 | AN6: 50.07776587 | AO6: 57776 | AP6: 49.92223413 | AQ6: 1124 | AR6: 0.7491036082 | AS6: 224 | AT6: 0.1492875518 | AU6: 390 | AV6: 0.2599202911 | AW6: 97743.4 | AX6: 83.43212136 | AY6: 6001.8 | AZ6: 5.123035478 | BA6: 110 | BB6: 0.09389414886 | BC6: 17204.8 | BD6: 14.68572775 | BE6: 823.6 | BF6: 0.7030111 | BG6: 1528.8 | BH6: 1.304957952 | BI6: 6157.6 | BJ6: 4.513529006 | BK6: 26483.4 | BL6: 19.41236749 | BM6: 38740.4 | BN6: 28.39676483 | BO6: 7570.6 | BP6: 5.549259889 | BQ6: 1248.6 | BR6: 0.9152254639
A7: płocka | B7: ostrołęcki | C7: 101913.76 | D7: 38.58815354 | E7: 102866.05 | F7: 38.94872421 | G7: 30132.37 | H7: 11.40918086 | I7: 29194.16 | J7: 11.05394138 | K7: 264106.34 | L7: 86813 | M7: 30.08683758 | N7: 2885.414586 | O7: 43222 | P7: 49.78747423 | Q7: 43591 | R7: 50.21252577 | S7: 11971 | T7: 13.78940942 | U7: 74842 | V7: 86.21059058 | W7: 57 | X7: 0.06565836914 | Y7: 920 | Z7: 1.059749116 | AA7: 497 | AB7: 54.02173913 | AC7: 423 | AD7: 45.97826087 | AE7: 11627 | AF7: 13.3931554 | AG7: 5662 | AH7: 48.69699837 | AI7: 5965 | AJ7: 51.30300163 | AK7: 73666 | AL7: 84.85595475 | AM7: 36463 | AN7: 49.49773301 | AO7: 37203 | AP7: 50.50226699 | AQ7: 271 | AR7: 0.3121652287 | AS7: 183 | AT7: 0.210797922 | AU7: 89 | AV7: 0.102519208 | AW7: 73707 | AX7: 84.9031827 | AY7: 1711 | AZ7: 1.970902975 | BA7: 9 | BB7: 0.01036711092 | BC7: 10844 | BD7: 12.49121675 | BE7: 4 | BF7: 0.004607604852 | BG7: 0 | BH7: 0 | BI7: 9628 | BJ7: 9.447203204 | BK7: 28942 | BL7: 28.39852047 | BM7: 20545 | BN7: 20.15920127 | BO7: 4919 | BP7: 4.826629888 | BQ7: 0 | BR7: 0.9152254639
A8: płocka | B8: pułtuski | C8: 100254.73 | D8: 39.95952261 | E8: 105897.03 | F8: 42.20843012 | G8: 15912.36 | H8: 6.342347232 | I8: 28826.59 | J8: 11.48970004 | K8: 250890.71 | L8: 96735 | M8: 35.29146277 | N8: 2741.031185 | O8: 48546 | P8: 50.18452473 | Q8: 48189 | R8: 49.81547527 | S8: 19798 | T8: 20.46622215 | U8: 76937 | V8: 79.53377785 | W8: 108 | X8: 0.1116452163 | Y8: 958 | Z8: 0.9903344188 | AA8: 459 | AB8: 47.91231733 | AC8: 499 | AD8: 52.08768267 | AE8: 19108 | AF8: 19.75293327 | AG8: 9454 | AH8: 49.47665899 | AI8: 9654 | AJ8: 50.52334101 | AK8: 75041 | AL8: 77.57378405 | AM8: 37012 | AN8: 49.32237044 | AO8: 38029 | AP8: 50.67762956 | AQ8: 1228 | AR8: 1.26944746 | AS8: 192 | AT8: 0.1984803846 | AU8: 100 | AV8: 0.1033752003 | AW8: 75339 | AX8: 77.88184215 | AY8: 3820 | AZ8: 3.948932651 | BA8: 0 | BB8: 0 | BC8: 16006 | BD8: 16.54623456 | BE8: 0 | BF8: 0 | BG8: 0 | BH8: 0 | BI8: 9481 | BJ8: 9.302963604 | BK8: 26252 | BL8: 25.75903391 | BM8: 18665 | BN8: 18.31450434 | BO8: 14900 | BP8: 14.62020438 | BQ8: 0 | BR8: 0.9152254639
A9: płocka | B9: przesnycki | C9: 117795.44 | D9: 50.27300193 | E9: 63371.25 | F9: 27.04572413 | G9: 13313.34 | H9: 5.681897088 | I9: 39831.5 | J9: 16.99937686 | K9: 234311.53 | L9: 84165 | M9: 32.87823322 | N9: 2559.900328 | O9: 41916 | P9: 49.8021743 | Q9: 42249 | R9: 50.1978257 | S9: 13183 | T9: 15.66328046 | U9: 70982 | V9: 84.33671954 | W9: 60 | X9: 0.07128854037 | Y9: 914 | Z9: 1.085962098 | AA9: 551 | AB9: 60.28446389 | AC9: 363 | AD9: 39.71553611 | AE9: 12923 | AF9: 15.35436345 | AG9: 6442 | AH9: 49.84910624 | AI9: 6481 | AJ9: 50.15089376 | AK9: 69859 | AL9: 83.00243569 | AM9: 34463 | AN9: 49.33222634 | AO9: 35396 | AP9: 50.66777366 | AQ9: 225 | AR9: 0.2673320264 | AS9: 98 | AT9: 0.1164379493 | AU9: 86 | AV9: 0.1021802412 | AW9: 72688 | AX9: 86.36369037 | AY9: 2213 | AZ9: 2.629358997 | BA9: 1 | BB9: 0.001188142339 | BC9: 8559 | BD9: 10.16931028 | BE9: 305 | BF9: 0.3623834135 | BG9: 0 | BH9: 0 | BI9: 11637 | BJ9: 11.41847774 | BK9: 33930 | BL9: 33.29285466 | BM9: 51644 | BN9: 50.6742171 | BO9: 15681 | BP9: 15.38653858 | BQ9: 80 | BR9: 0.07849774162
A10: płocka | B10: mławski | C10: 134355.03 | D10: 50.07095946 | E10: 72182.11 | F10: 26.90057457 | G10: 26382.61 | H10: 9.832178192 | I10: 35409.5 | J10: 13.19628777 | K10: 268329.25 | L10: 84299 | M10: 28.75577058 | N10: 2931.550722 | O10: 41842 | P10: 49.63522699 | Q10: 42457 | R10: 50.36477301 | S10: 17573 | T10: 20.84603613 | U10: 66726 | V10: 79.15396387 | W10: 97 | X10: 0.1150666081 | Y10: 748 | Z10: 0.8873177618 | AA10: 440 | AB10: 58.82352941 | AC10: 308 | AD10: 41.17647059 | AE10: 17112 | AF10: 20.29917318 | AG10: 8484 | AH10: 49.57924264 | AI10: 8628 | AJ10: 50.42075736 | AK10: 65430 | AL10: 77.61657908 | AM10: 31919 | AN10: 48.78343268 | AO10: 33511 | AP10: 51.21656732 | AQ10: 558 | AR10: 0.6619295603 | AS10: 133 | AT10: 0.1577717411 | AU10: 221 | AV10: 0.262162066 | AW10: 73422 | AX10: 87.09711859 | AY10: 1952 | AZ10: 2.315567207 | BA10: 0 | BB10: 0 | BC10: 8103 | BD10: 9.612213668 | BE10: 0 | BF10: 0 | BG10: 0 | BH10: 0 | BI10: 12201 | BJ10: 11.97188682 | BK10: 34833 | BL10: 34.17889792 | BM10: 39370 | BN10: 38.63070109 | BO10: 18101 | BP10: 17.76109526 | BQ10: 202 | BR10: 0.1982067976
A11: płocka | B11: płocki | C11: 152648.2 | D11: 64.89653971 | E11: 38341.98 | F11: 16.30062999 | G11: 20231.41 | H11: 8.601139761 | I11: 23996.19 | J11: 10.20169054 | K11: 235217.78 | L11: 98671 | M11: 38.39635398 | N11: 2569.80129 | O11: 50518 | P11: 51.1984271 | Q11: 48153 | R11: 48.8015729 | S11: 19895 | T11: 20.16296582 | U11: 78776 | V11: 79.83703418 | W11: 140 | X11: 0.1418856604 | Y11: 2262 | Z11: 2.292466885 | AA11: 961 | AB11: 42.48452697 | AC11: 1301 | AD11: 57.51547303 | AE11: 18441 | AF11: 18.68938189 | AG11: 9901 | AH11: 53.69014696 | AI11: 8540 | AJ11: 46.30985304 | AK11: 76474 | AL11: 77.50402854 | AM11: 38185 | AN11: 49.93200303 | AO11: 38289 | AP11: 50.06799697 | AQ11: 445 | AR11: 0.4509937064 | AS11: 699 | AT11: 0.7084148331 | AU11: 210 | AV11: 0.2128284906 | AW11: 75057 | AX11: 76.06794296 | AY11: 8571 | AZ11: 8.686442825 | BA11: 405 | BB11: 0.4104549462 | BC11: 12332 | BD11: 12.49809975 | BE11: 16 | BF11: 0.01621550405 | BG11: 12 | BH11: 0.01216162804 | BI11: 15820 | BJ11: 15.52292841 | BK11: 27458 | BL11: 26.94238737 | BM11: 43782 | BN11: 42.95985155 | BO11: 22359 | BP11: 21.93913756 | BQ11: 199 | BR11: 0.1952631323
A12: płocka | B12: lipnowski | C12: 138767.39 | D12: 51.13843664 | E12: 76655.99 | F12: 28.24919808 | G12: 23938.03 | H12: 8.821621783 | I12: 31994.93 | J12: 11.79074349 | K12: 271356.34 | L12: 102828 | M12: 34.68502564 | N12: 2964.622286 | O12: 51661 | P12: 50.24020695 | Q12: 51167 | R12: 49.75979305 | S12: 13302 | T12: 12.93616525 | U12: 89526 | V12: 87.06383475 | W12: 86 | X12: 0.08363480764 | Y12: 820 | Z12: 0.7974481659 | AA12: 396 | AB12: 48.29268293 | AC12: 424 | AD12: 51.70731707 | AE12: 12925 | AF12: 12.56953359 | AG12: 6242 | AH12: 48.29400387 | AI12: 6683 | AJ12: 51.70599613 | AK12: 88117 | AL12: 85.6935854 | AM12: 44057 | AN12: 49.99829772 | AO12: 44060 | AP12: 50.00170228 | AQ12: 639 | AR12: 0.6214260707 | AS12: 106 | AT12: 0.1030847629 | AU12: 135 | AV12: 0.131287198 | AW12: 73523 | AX12: 71.50095305 | AY12: 18359 | AZ12: 17.85408644 | BA12: 4 | BB12: 0.003889991053 | BC12: 6360 | BD12: 6.185085774 | BE12: 6 | BF12: 0.00583498658 | BG12: 0 | BH12: 0 | BI12: 9112 | BJ12: 8.940892771 | BK12: 18843 | BL12: 18.48916182 | BM12: 94664 | BN12: 92.88637766 | BO12: 7060 | BP12: 6.927425698 | BQ12: 48 | BR12: 0.04709864497
A13: radomska | B13: radomski | C13: 136189 | D13: 37.5533065 | E13: 72184.96 | F13: 19.90457326 | G13: 48538 | H13: 13.38406472 | I13: 105743.19 | J13: 29.15805552 | K13: 362655.15 | L13: 133876 | M13: 33.7893224 | N13: 3962.080045 | O13: 65610 | P13: 49.00803729 | Q13: 68266 | R13: 50.99196271 | S13: 30797 | T13: 23.00412322 | U13: 103079 | V13: 76.99587678 | W13: 92 | X13: 0.06872030835 | Y13: 991 | Z13: 0.7402372345 | AA13: 483 | AB13: 48.73864783 | AC13: 508 | AD13: 51.26135217 | AE13: 28598 | AF13: 21.36155846 | AG13: 14074 | AH13: 49.21323169 | AI13: 14524 | AJ13: 50.78676831 | AK13: 98991 | AL13: 73.94230482 | AM13: 48317 | AN13: 48.80948773 | AO13: 50494 | AP13: 51.00867756 | AQ13: 2765 | AR13: 2.06534405 | AS13: 1371 | AT13: 1.024081986 | AU13: 1068 | AV13: 0.7977531447 | AW13: 112381 | AX13: 83.94409752 | AY13: 2568 | AZ13: 1.918192955 | BA13: 38 | BB13: 0.02838447519 | BC13: 15775 | BD13: 11.783292 | BE13: 117 | BF13: 0.08739430518 | BH13: 0 | BI13: 21207 | BJ13: 20.80877008 | BK13: 22746 | BL13: 22.31887039 | BM13: 60000 | BN13: 58.87330621 | BO13: 44511 | BP13: 43.67516222 | BR13: 0
A14: radomska | B14: opatowski | C14: 166440 | D14: 35.67884894 | E14: 160162.54 | F14: 34.33318356 | G14: 36042 | H14: 7.726129979 | I14: 103850.33 | J14: 22.26183752 | K14: 466494.87 | L14: 91314 | M14: 17.91682695 | N14: 5096.549754 | O14: 43885 | P14: 48.05944324 | Q14: 47429 | R14: 51.94055676 | S14: 23726 | T14: 25.98287229 | U14: 67588 | V14: 74.01712771 | W14: 93 | X14: 0.1018463762 | Y14: 1692 | Z14: 1.852946974 | AA14: 811 | AB14: 47.93144208 | AC14: 881 | AD14: 52.06855792 | AE14: 23409 | AF14: 25.63571851 | AG14: 10540 | AH14: 45.02541757 | AI14: 12869 | AJ14: 54.97458243 | AK14: 64908 | AL14: 71.08219988 | AM14: 31683 | AN14: 48.81216491 | AO14: 33225 | AP14: 51.18783509 | AQ14: 1011 | AR14: 1.107168671 | AS14: 163 | AT14: 0.178504939 | AU14: 38 | AV14: 0.04161464836 | AW14: 89540 | AX14: 98.057253 | AY14: 464 | AZ14: 0.5081367589 | BA14: 5 | BB14: 0.005475611626 | BC14: 10407 | BD14: 11.39693804 | BE14: 0 | BF14: 0 | BH14: 0 | BI14: 8268 | BJ14: 8.112741596 | BK14: 10000 | BL14: 9.812217702 | BM14: 47500 | BN14: 46.60803409 | BO14: 18563 | BP14: 18.21441972 | BR14: 0
A15: radomska | B15: sandomierski | C15: 62302 | D15: 36.5842387 | E15: 35204.44 | F15: 20.67233213 | G15: 9222 | H15: 5.415233047 | I15: 63568.94 | J15: 37.32819612 | K15: 170297.38 | L15: 94351 | M15: 50.7118139 | N15: 1860.532936 | O15: 48104 | P15: 50.98409132 | Q15: 46247 | R15: 49.01590868 | S15: 24589 | T15: 26.06119702 | U15: 69762 | V15: 73.93880298 | W15: 203 | X15: 0.2151540524 | Y15: 1073 | Z15: 1.137242849 | AA15: 471 | AB15: 43.89561976 | AC15: 602 | AD15: 56.10438024 | AE15: 23884 | AF15: 25.31398713 | AG15: 11525 | AH15: 48.2540613 | AI15: 12359 | AJ15: 51.7459387 | AK15: 68290 | AL15: 72.37867113 | AM15: 35498 | AN15: 51.98125641 | AO15: 32792 | AP15: 48.01874359 | AQ15: 415 | AR15: 0.4398469545 | AS15: 212 | AT15: 0.224692902 | AU15: 274 | AV15: 0.2904049772 | AW15: 75671 | AX15: 80.20158769 | AY15: 314 | AZ15: 0.3327998643 | BA15: 10 | BB15: 0.01059872179 | BC15: 13447 | BD15: 14.2521012 | BE15: 0 | BF15: 0 | BH15: 0 | BI15: 8755 | BJ15: 8.590596599 | BK15: 10597 | BL15: 10.3980071 | BM15: 56825 | BN15: 55.75792709 | BO15: 17777 | BP15: 17.44317941 | BR15: 0
A16: radomska | B16: stopnicki | C16: 67538 | D16: 36.45382808 | E16: 16576 | F16: 8.946943266 | G16: 6053 | H16: 3.26712401 | I16: 95102.98 | J16: 51.33210464 | K16: 185269.98 | L16: 78744 | M16: 38.90299357 | N16: 2024.111585 | O16: 42557 | P16: 54.04475262 | Q16: 36187 | R16: 45.95524738 | S16: 8704 | T16: 11.05354059 | U16: 70040 | V16: 88.94645941 | W16: 111 | X16: 0.140963121 | Y16: 438 | Z16: 0.5562328558 | AA16: 207 | AB16: 47.26027397 | AC16: 231 | AD16: 52.73972603 | AE16: 10412 | AF16: 13.22259474 | AG16: 3432 | AH16: 32.96196696 | AI16: 4122 | AJ16: 39.58893584 | AK16: 65555 | AL16: 83.25078736 | AM16: 36796 | AN16: 56.1299672 | AO16: 28759 | AP16: 43.8700328 | AQ16: 1030 | AR16: 1.308036168 | AS16: 1032 | AT16: 1.310576044 | AU16: 166 | AV16: 0.2108097125 | AW16: 86128 | AX16: 109.3772224 | AY16: 395 | AZ16: 0.5016255207 | BA16: 21 | BB16: 0.02666869857 | BC16: 14716 | BD16: 18.68840801 | BE16: 0 | BF16: 0 | BH16: 0 | BI16: 9630 | BJ16: 9.449165648 | BK16: 7200 | BL16: 7.064796746 | BM16: 65000 | BN16: 63.77941507 | BO16: 15275 | BP16: 14.98816254 | BR16: 0
A17: radomska | B17: miechowski | C17: 142707 | D17: 70.92487615 | E17: 11965 | F17: 5.946562839 | G17: 27559 | H17: 13.69672589 | I17: 18977.67 | J17: 9.431835119 | K17: 201208.67 | L17: 113194 | M17: 51.49289637 | N17: 2198.244961 | O17: 54563 | P17: 48.20308497 | Q17: 58631 | R17: 51.79691503 | S17: 25252 | T17: 22.30860293 | U17: 87942 | V17: 77.69139707 | W17: 84 | X17: 0.07420888033 | Y17: 490 | Z17: 0.4328851353 | AA17: 290 | AB17: 59.18367347 | AC17: 200 | AD17: 40.81632653 | AE17: 17098 | AF17: 15.1050409 | AG17: 8438 | AH17: 49.35080126 | AI17: 8389 | AJ17: 49.06421804 | AK17: 94754 | AL17: 83.70938389 | AM17: 41504 | AN17: 43.80184478 | AO17: 45299 | AP17: 47.80695274 | AQ17: 417 | AR17: 0.3683940845 | AS17: 285 | AT17: 0.2517801297 | AU17: 66 | AV17: 0.0583069774 | AW17: 110410 | AX17: 97.54050568 | AY17: 8 | AZ17: 0.007067512412 | BA17: 5 | BB17: 0.004417195258 | BC17: 3198 | BD17: 2.825238087 | BE17: 0 | BF17: 0 | BH17: 0 | BI17: 15952 | BJ17: 15.65244968 | BK17: 22310 | BL17: 21.89105769 | BM17: 65365 | BN17: 64.13756101 | BO17: 17885 | BP17: 17.54915136 | BR17: 0
A18: radomska | B18: olkuski | C18: 212420 | D18: 52.09751737 | E18: 161611.931 | F18: 39.63647671 | G18: 7751.091 | H18: 1.901010253 | I18: 25952.338 | J18: 6.364995668 | K18: 407735.36 | L18: 164852 | M18: 37.00721881 | N18: 4454.590355 | O18: 78957 | P18: 47.89568825 | Q18: 85895 | R18: 52.10431175 | S18: 35538 | T18: 21.55751826 | U18: 129314 | V18: 78.44248174 | W18: 119 | X18: 0.07218596074 | Y18: 283 | Z18: 0.1716691335 | AA18: 283 | AB18: 100 | AC18: 0 | AD18: 0 | AE18: 35152 | AF18: 21.32336884 | AG18: 16739 | AH18: 47.61891215 | AI18: 18413 | AJ18: 52.38108785 | AK18: 128581 | AL18: 77.99784049 | AM18: 61117 | AN18: 47.53190596 | AO18: 67464 | AP18: 52.46809404 | AQ18: 238 | AR18: 0.1443719215 | AS18: 363 | AT18: 0.2201975105 | AU18: 116 | AV18: 0.0703661466 | AW18: 147598 | AX18: 89.5336423 | AY18: 431 | AZ18: 0.2614466309 | BA18: 1 | BB18: 0.0006066047121 | BC18: 14524 | BD18: 8.810326839 | BE18: 0 | BF18: 0 | BH18: 0 | BI18: 12063 | BJ18: 11.83647821 | BK18: 26921 | BL18: 26.41547128 | BM18: 48298 | BN18: 47.39104906 | BO18: 17181 | BP18: 16.85837123 | BR18: 0
A19: radomska | B19: kielecki | C19: 163926 | D19: 61.60296919 | E19: 31433 | F19: 11.81244056 | G19: 30764 | H19: 11.56103208 | I19: 39977.81 | J19: 15.02355818 | K19: 266100.81 | L19: 115285 | M19: 39.65493217 | N19: 2907.204569 | O19: 58887 | P19: 51.07949863 | Q19: 56398 | R19: 48.92050137 | S19: 17734 | T19: 15.38274711 | U19: 97551 | V19: 84.61725289 | W19: 115 | X19: 0.09975278657 | Y19: 415 | Z19: 0.3599774472 | AA19: 171 | AB19: 41.20481928 | AC19: 244 | AD19: 58.79518072 | AE19: 17436 | AF19: 15.12425728 | AG19: 10125 | AH19: 58.06951136 | AI19: 7311 | AJ19: 41.93048864 | AK19: 96632 | AL19: 83.82009802 | AM19: 48128 | AN19: 49.80544747 | AO19: 48504 | AP19: 50.19455253 | AQ19: 514 | AR19: 0.4458515852 | AS19: 140 | AT19: 0.121438175 | AU19: 33 | AV19: 0.02862471267 | AW19: 107129 | AX19: 92.92535889 | AY19: 1020 | AZ19: 0.8847638461 | BA19: 18 | BB19: 0.01561347964 | BC19: 7260 | BD19: 6.297436787 | BE19: 0 | BF19: 0 | BH19: 0 | BI19: 15311 | BJ19: 15.02348652 | BK19: 10000 | BL19: 9.812217702 | BM19: 28400 | BN19: 27.86669828 | BO19: 14800 | BP19: 14.5220822 | BR19: 0
A20: radomska | B20: opoczyński | C20: 156435 | D20: 37.39141825 | E20: 166192 | F20: 39.72355663 | G20: 12372 | H20: 2.957181108 | I20: 83372.4 | J20: 19.92784402 | K20: 418371.4 | L20: 183627 | M20: 40.17400734 | N20: 4570.791219 | O20: 90165 | P20: 49.1022562 | Q20: 93462 | R20: 50.8977438 | S20: 30744 | T20: 16.74263589 | U20: 152883 | V20: 83.25736411 | W20: 102 | X20: 0.05554738682 | Y20: 5590 | Z20: 3.044214631 | AA20: 2527 | AB20: 45.20572451 | AC20: 3063 | AD20: 54.79427549 | AE20: 28772 | AF20: 15.66871974 | AG20: 13756 | AH20: 47.81037119 | AI20: 15016 | AJ20: 52.18962881 | AK20: 145558 | AL20: 79.26829932 | AM20: 72745 | AN20: 49.97664161 | AO20: 72813 | AP20: 50.02335839 | AQ20: 2312 | AR20: 1.259074101 | AS20: 864 | AT20: 0.4705190413 | AU20: 429 | AV20: 0.233625774 | AW20: 142534 | AX20: 77.62148268 | AY20: 1140 | AZ20: 0.6208237351 | BA20: 6 | BB20: 0.003267493342 | BC20: 17506 | BD20: 9.533456409 | BE20: 0 | BF20: 0 | BH20: 0 | BI20: 6500 | BJ20: 6.377941507 | BK20: 10000 | BL20: 9.812217702 | BM20: 52062 | BN20: 51.0843678 | BO20: 17800 | BP20: 17.46574751 | BR20: 0
A21: warszawska | B21: kujawski | C21: 75729.18974 | D21: 39.31855057 | E21: 41770.84606 | F21: 21.68739859 | G21: 14062.50428 | H21: 7.301243916 | I21: 61041.68526 | J21: 31.69280692 | K21: 192604.2253 | L21: 120094 | M21: 57.07239578 | N21: 2104.239683 | O21: 59088 | P21: 49.20145886 | Q21: 61006 | R21: 50.79854114 | S21: 34736 | T21: 28.92400953 | U21: 85358 | V21: 71.07599047 | W21: 196 | X21: 0.163205489 | Y21: 6215 | Z21: 5.175112828 | AA21: 2244 | AB21: 36.10619469 | AC21: 3971 | AD21: 63.89380531 | AE21: 34327 | AF21: 28.58344297 | AG21: 16212 | AH21: 47.22812946 | AI21: 18115 | AJ21: 52.77187054 | AK21: 79356 | AL21: 66.07823871 | AM21: 40436 | AN21: 50.95518927 | AO21: 38920 | AP21: 49.04481073 | AQ21: 972 | AR21: 0.8093659966 | AS21: 213 | AT21: 0.1773610672 | AU21: 259 | AV21: 0.2156643962 | AW21: 91032 | AX21: 75.80062285 | AY21: 17457 | AZ21: 14.53611338 | BA21: 1 | BB21: 0.0008326810665 | BC21: 11627 | BD21: 9.68158276 | BE21: 0 | BF21: 0 | BH21: 0 | BI21: 16542 | BJ21: 16.23137052 | BK21: 30717 | BL21: 30.14018912 | BM21: 94257 | BN21: 92.4870204 | BO21: 19397 | BP21: 19.03275868 | BR21: 0
A22: warszawska | B22: gostyniński | C22: 104661.4902 | D22: 44.5417267 | E22: 57569.46198 | F22: 24.50035095 | G22: 26111.11907 | H22: 11.11234253 | I22: 46631.95865 | J22: 19.84557981 | K22: 234974.0299 | L22: 110053 | M22: 42.86991519 | N22: 2567.138272 | O22: 54234 | P22: 49.27989242 | Q22: 55819 | R22: 50.72010758 | S22: 15586 | T22: 14.16226727 | U22: 94467 | V22: 85.83773273 | W22: 60 | X22: 0.05451918621 | Y22: 668 | Z22: 0.6069802731 | AA22: 338 | AB22: 50.5988024 | AC22: 330 | AD22: 49.4011976 | AE22: 15388 | AF22: 13.98235396 | AG22: 7811 | AH22: 50.76033273 | AI22: 7577 | AJ22: 49.23966727 | AK22: 93937 | AL22: 85.35614658 | AM22: 46025 | AN22: 48.99560344 | AO22: 47912 | AP22: 51.00439656 | AQ22: 720 | AR22: 0.6542302345 | AS22: 71 | AT22: 0.06451437035 | AU22: 74 | AV22: 0.06724032966 | AW22: 84776 | AX22: 77.0319755 | AY22: 15599 | AZ22: 14.17407976 | BA22: 4 | BB22: 0.003634612414 | BC22: 9204 | BD22: 8.363243165 | BE22: 31 | BF22: 0.02816824621 | BH22: 0 | BI22: 10000 | BJ22: 9.812217702 | BK22: 34895 | BL22: 34.23973367 | BM22: 106076 | BN22: 104.0840805 | BO22: 20308 | BP22: 19.92665171 | BR22: 0
A23: warszawska | B23: łęczycki | C23: 78020.8571 | D23: 44.87717196 | E23: 28541.67536 | F23: 16.41701618 | G23: 29583.34235 | H23: 17.01617735 | I23: 37708.34482 | J23: 21.68963451 | K23: 173854.2196 | L23: 140032 | M23: 73.72463985 | N23: 1899.39212 | O23: 68943 | P23: 49.23374657 | Q23: 71089 | R23: 50.76625343 | S23: 53661 | T23: 38.32052674 | U23: 86371 | V23: 61.67947326 | W23: 103 | X23: 0.07355461609 | Y23: 1083 | Z23: 0.7733946527 | AA23: 455 | AB23: 42.01292705 | AC23: 628 | AD23: 57.98707295 | AE23: 53347 | AF23: 38.09629228 | AG23: 26627 | AH23: 49.91283484 | AI23: 26720 | AJ23: 50.08716516 | AK23: 85499 | AL23: 61.05675846 | AM23: 41758 | AN23: 48.84033731 | AO23: 43741 | AP23: 51.15966269 | AQ23: 1973 | AR23: 1.408963665 | AS23: 188 | AT23: 0.1342550274 | AU23: 159 | AV23: 0.1135454753 | AW23: 89342 | AX23: 63.80113117 | AY23: 35995 | AZ23: 25.70483889 | BA23: 24 | BB23: 0.01713893967 | BC23: 14412 | BD23: 10.29193327 | BE23: 259 | BF23: 0.1849577239 | BH23: 0 | BI23: 9131 | BJ23: 8.959535984 | BK23: 33897 | BL23: 33.26047435 | BM23: 78622 | BN23: 77.14561802 | BO23: 13798 | BP23: 13.53889799 | BR23: 0
A24: warszawska | B24: rawski | C24: 186145.89 | D24: 58.47513089 | E24: 65000.0198 | F24: 20.41884817 | G24: 29687.50905 | H24: 9.32591623 | I24: 37500.01143 | J24: 11.78010471 | K24: 318333.4303 | L24: 132984 | M24: 38.23734651 | N24: 3477.856393 | O24: 65583 | P24: 49.31645912 | Q24: 67401 | R24: 50.68354088 | S24: 29616 | T24: 22.27034831 | U24: 103368 | V24: 77.72965169 | W24: 115 | X24: 0.08647656861 | Y24: 915 | Z24: 0.6880526981 | AA24: 456 | AB24: 49.83606557 | AC24: 459 | AD24: 50.16393443 | AE24: 29422 | AF24: 22.1244661 | AG24: 14615 | AH24: 49.67371355 | AI24: 14807 | AJ24: 50.32628645 | AK24: 102532 | AL24: 77.10100463 | AM24: 50397 | AN24: 49.15245972 | AO24: 52135 | AP24: 50.84754028 | AQ24: 1274 | AR24: 0.9580099862 | AS24: 130 | AT24: 0.09775612104 | AU24: 125 | AV24: 0.09399627023 | AW24: 102986 | AX24: 77.44239909 | AY24: 16012 | AZ24: 12.04054623 | BA24: 20 | BB24: 0.01503940324 | BC24: 13965 | BD24: 10.50126331 | BE24: 0 | BF24: 0 | BH24: 0 | BI24: 9977 | BJ24: 9.789649602 | BK24: 38376 | BL24: 37.65536666 | BM24: 154784 | BN24: 151.8774305 | BO24: 18998 | BP24: 18.64125119 | BR24: 0
A25: warszawska | B25: sochaczewski | C25: 80000.02437 | D25: 46.0293677 | E25: 29270.84225 | F25: 16.84147438 | G25: 27916.67517 | H25: 16.06233144 | I25: 36614.59449 | J25: 21.06682649 | K25: 173802.1363 | L25: 70429 | M25: 37.09086961 | N25: 1898.823099 | O25: 34355 | P25: 48.77962203 | Q25: 36074 | R25: 51.22037797 | S25: 11399 | T25: 16.18509421 | U25: 59030 | V25: 83.81490579 | W25: 80 | X25: 0.1135895725 | Y25: 228 | Z25: 0.3237302816 | AA25: 129 | AB25: 56.57894737 | AC25: 99 | AD25: 43.42105263 | AE25: 11269 | AF25: 16.00051115 | AG25: 5590 | AH25: 49.60511137 | AI25: 5679 | AJ25: 50.39488863 | AK25: 58852 | AL25: 83.56216899 | AM25: 28556 | AN25: 48.52171549 | AO25: 30296 | AP25: 51.47828451 | AQ25: 143 | AR25: 0.2030413608 | AS25: 249 | AT25: 0.3535475443 | AU25: 5 | AV25: 0.00709934828 | AW25: 60527 | AX25: 85.94045067 | AY25: 4632 | AZ25: 6.576836246 | BA25: 6 | BB25: 0.008519217936 | BC25: 5275 | BD25: 7.489812435 | BE25: 11 | BF25: 0.01561856622 | BH25: 0 | BI25: 7469 | BJ25: 7.328745402 | BK25: 27516 | BL25: 26.99929823 | BM25: 10884 | BN25: 10.67961775 | BO25: 15317 | BP25: 15.02937385 | BR25: 0
A26: warszawska | B26: warszawski | C26: 150208.3791 | D26: 56.72698662 | E26: 48958.34825 | F26: 18.48937844 | G26: 23229.17374 | H26: 8.772619984 | I26: 42395.84625 | J26: 16.01101495 | K26: 264791.7473 | L26: 146786 | M26: 50.74003872 | N26: 2892.902798 | O26: 72297 | P26: 49.25333479 | Q26: 74489 | R26: 50.74666521 | S26: 31803 | T26: 21.6662352 | U26: 114983 | V26: 78.3337648 | W26: 152 | X26: 0.1035521099 | Y26: 726 | Z26: 0.4945975774 | AA26: 362 | AB26: 49.86225895 | AC26: 364 | AD26: 50.13774105 | AE26: 31688 | AF26: 21.58788985 | AG26: 15301 | AH26: 48.28641757 | AI26: 16387 | AJ26: 51.71358243 | AK26: 114220 | AL26: 77.81396046 | AM26: 56482 | AN26: 49.45018386 | AO26: 57738 | AP26: 50.54981614 | AQ26: 837 | AR26: 0.5702178682 | AS26: 105 | AT26: 0.07153270748 | AU26: 214 | AV26: 0.1457904705 | AW26: 121079 | AX26: 82.48674942 | AY26: 10564 | AZ26: 7.196871636 | BA26: 17 | BB26: 0.01158148597 | BC26: 8064 | BD26: 5.493711934 | BE26: 600 | BF26: 0.4087583285 | BH26: 0 | BI26: 12991 | BJ26: 12.74705202 | BK26: 53232 | BL26: 52.23239727 | BM26: 84528 | BN26: 82.9407138 | BO26: 24137 | BP26: 23.68374987 | BR26: 0
A27: warszawska | B27: stanisławowski | C27: 168229.2179 | D27: 46.14285714 | E27: 10416.66984 | F27: 2.857142857 | G27: 109375.0333 | H27: 30 | I27: 76562.52333 | J27: 21 | K27: 364583.4444 | L27: 88821 | M27: 22.29920185 | N27: 3983.147047 | O27: 44499 | P27: 50.0996386 | Q27: 44322 | R27: 49.9003614 | S27: 14944 | T27: 16.82484998 | U27: 73877 | V27: 83.17515002 | W27: 51 | X27: 0.05741885365 | Y27: 4492 | Z27: 5.057362561 | AA27: 2226 | AB27: 49.55476402 | AC27: 2266 | AD27: 50.44523598 | AE27: 14753 | AF27: 16.60981074 | AG27: 7312 | AH27: 49.56280079 | AI27: 7441 | AJ27: 50.43719921 | AK27: 69525 | AL27: 78.27540784 | AM27: 34910 | AN27: 50.2121539 | AO27: 34615 | AP27: 49.7878461 | AQ27: 732 | AR27: 0.8241294289 | AS27: 64 | AT27: 0.07205503203 | AU27: 68 | AV27: 0.07655847153 | AW27: 75629 | AX27: 85.14765652 | AY27: 2889 | AZ27: 3.25260918 | BA27: 2 | BB27: 0.002251719751 | BC27: 11316 | BD27: 12.74023035 | BE27: 38 | BF27: 0.04278267527 | BH27: 0 | BI27: 6006 | BJ27: 5.893217952 | BK27: 38878 | BL27: 38.14793998 | BM27: 33704 | BN27: 33.07109854 | BO27: 15964 | BP27: 15.66422434 | BR27: 0
A28: warszawska | B28: koniński | C28: 135312.5412 | D28: 52.24210738 | E28: 79479.19088 | F28: 30.6857028 | G28: 23333.34044 | H28: 9.008646692 | I28: 20885.42303 | J28: 8.063543133 | K28: 259010.4956 | L28: 135657 | M28: 47.9397152 | N28: 2829.741466 | O28: 65828 | P28: 48.5253249 | Q28: 69829 | R28: 51.4746751 | S28: 27251 | T28: 20.08816353 | U28: 108406 | V28: 79.91183647 | W28: 121 | X28: 0.08919554465 | Y28: 1076 | Z28: 0.7931769094 | AA28: 503 | AB28: 46.7472119 | AC28: 573 | AD28: 53.2527881 | AE28: 26871 | AF28: 19.80804529 | AG28: 12512 | AH28: 46.56320941 | AI28: 14359 | AJ28: 53.43679059 | AK28: 107589 | AL28: 79.30958226 | AM28: 52692 | AN28: 48.97526699 | AO28: 54897 | AP28: 51.02473301 | AQ28: 3826 | AR28: 2.820348379 | AS28: 242 | AT28: 0.1783910893 | AU28: 157 | AV28: 0.1157330621 | AW28: 104175 | AX28: 76.79294102 | AY28: 23290 | AZ28: 17.16829946 | BA28: 4 | BB28: 0.002948613046 | BC28: 8173 | BD28: 6.024753607 | BE28: 22 | BF28: 0.01621737175 | BH28: 0 | BI28: 11940 | BJ28: 11.71578794 | BK28: 44391 | BL28: 43.5574156 | BM28: 198706 | BN28: 194.9746531 | BO28: 21243 | BP28: 20.84409407 | BR28: 0
A29: warszawska | B29: kaliski | C29: 126354.2052 | D29: 39.83579639 | E29: 71250.02171 | F29: 22.46305419 | G29: 35755.21923 | H29: 11.272578 | I29: 83828.15054 | J29: 26.42857143 | K29: 317187.5966 | L29: 148261 | M29: 42.7839948 | N29: 3465.337931 | O29: 72492 | P29: 48.89485434 | Q29: 75769 | R29: 51.10514566 | S29: 34406 | T29: 23.20637255 | U29: 113855 | V29: 76.79362745 | W29: 144 | X29: 0.09712601426 | Y29: 1288 | Z29: 0.8687382386 | AA29: 618 | AB29: 47.98136646 | AC29: 670 | AD29: 52.01863354 | AE29: 34143 | AF29: 23.02898267 | AG29: 16479 | AH29: 48.26465161 | AI29: 17664 | AJ29: 51.73534839 | AK29: 112686 | AL29: 76.00515307 | AM29: 55251 | AN29: 49.03093552 | AO29: 57435 | AP29: 50.96906448 | AQ29: 1877 | AR29: 1.266010616 | AS29: 247 | AT29: 0.1665980939 | AU29: 245 | AV29: 0.1652491215 | AW29: 121857 | AX29: 82.19086611 | AY29: 15545 | AZ29: 10.48488814 | BA29: 22 | BB29: 0.01483869662 | BC29: 10849 | BD29: 7.317500894 | BE29: 0 | BF29: 0 | BH29: 0 | BI29: 12713 | BJ29: 12.47427237 | BK29: 35116 | BL29: 34.45658368 | BM29: 202981 | BN29: 199.1693761 | BO29: 22856 | BP29: 22.42680478 | BR29: 0
A30: warszawska | B30: sieradzki | C30: 144895.8775 | D30: 40.36564132 | E30: 132604.2071 | F30: 36.94138131 | G30: 33125.01009 | H30: 9.22809054 | I30: 48333.34806 | J30: 13.46488683 | K30: 358958.4427 | L30: 130667 | M30: 33.31903017 | N30: 3921.692778 | O30: 64463 | P30: 49.33380272 | Q30: 66204 | R30: 50.66619728 | S30: 28672 | T30: 21.94280117 | U30: 101995 | V30: 78.05719883 | W30: 91 | X30: 0.06964267948 | Y30: 790 | Z30: 0.6045902944 | AA30: 416 | AB30: 52.65822785 | AC30: 374 | AD30: 47.34177215 | AE30: 28282 | AF30: 21.64433254 | AG30: 14011 | AH30: 49.54034368 | AI30: 14271 | AJ30: 50.45965632 | AK30: 101504 | AL30: 77.68143449 | AM30: 49945 | AN30: 49.20495744 | AO30: 51559 | AP30: 50.79504256 | AQ30: 1031 | AR30: 0.7890285994 | AS30: 136 | AT30: 0.1040813671 | AU30: 175 | AV30: 0.1339282298 | AW30: 105927 | AX30: 81.06637483 | AY30: 13255 | AZ30: 10.14410678 | BA30: 11 | BB30: 0.008418345872 | BC30: 11450 | BD30: 8.762732748 | BE30: 28 | BF30: 0.02142851676 | BH30: 0 | BI30: 10073 | BJ30: 9.883846892 | BK30: 30447 | BL30: 29.87525924 | BM30: 113875 | BN30: 111.7366291 | BO30: 15514 | BP30: 15.22267454 | BR30: 0
A31: warszawska | B31: piotrkowski | C31: 147916.7117 | D31: 35.53553554 | E31: 127812.5389 | F31: 30.70570571 | G31: 21354.17317 | H31: 5.13013013 | I31: 119166.703 | J31: 28.62862863 | K31: 416250.1268 | L31: 177024 | M31: 38.92677052 | N31: 4547.615886 | O31: 87093 | P31: 49.19841377 | Q31: 89931 | R31: 50.80158623 | S31: 28793 | T31: 16.26502621 | U31: 148231 | V31: 83.73497379 | W31: 128 | X31: 0.0723065799 | Y31: 1277 | Z31: 0.7213711135 | AA31: 636 | AB31: 49.80422866 | AC31: 641 | AD31: 50.19577134 | AE31: 28569 | AF31: 16.1384897 | AG31: 13890 | AH31: 48.61913263 | AI31: 14679 | AJ31: 51.38086737 | AK31: 147050 | AL31: 83.06783261 | AM31: 72439 | AN31: 49.26147569 | AO31: 74611 | AP31: 50.73852431 | AQ31: 2834 | AR31: 1.600912871 | AS31: 141 | AT31: 0.07965021692 | AU31: 105 | AV31: 0.05931399132 | AW31: 150705 | AX31: 85.1325244 | AY31: 12655 | AZ31: 7.148748192 | BA31: 25 | BB31: 0.01412237889 | BC31: 13571 | BD31: 7.666192155 | BE31: 96 | BF31: 0.05422993492 | BH31: 0 | BI31: 14462 | BJ31: 14.19042924 | BK31: 48063 | BL31: 47.16046194 | BM31: 164721 | BN31: 161.6278312 | BO31: 22655 | BP31: 22.22957921 | BR31: 0
A32: warszawska | B32: wieluński | C32: 136979.2084 | D32: 38.9168393 | E32: 78125.0238 | F32: 22.19591595 | G32: 38333.34501 | H32: 10.89079609 | I32: 98541.69669 | J32: 27.99644865 | K32: 351979.2739 | L32: 148357 | M32: 38.57994068 | N32: 3845.443963 | O32: 70908 | P32: 47.79552027 | Q32: 77449 | R32: 52.20447973 | S32: 28452 | T32: 19.17806372 | U32: 119905 | V32: 80.82193628 | W32: 191 | X32: 0.1287435038 | Y32: 1321 | Z32: 0.8904197308 | AA32: 303 | AB32: 22.93716881 | AC32: 1018 | AD32: 77.06283119 | AE32: 28247 | AF32: 19.03988352 | AG32: 13377 | AH32: 47.35724148 | AI32: 14870 | AJ32: 52.64275852 | AK32: 118598 | AL32: 79.94095324 | AM32: 57037 | AN32: 48.09271657 | AO32: 61561 | AP32: 51.90728343 | AQ32: 326 | AR32: 0.2197402212 | AS32: 219 | AT32: 0.1476168971 | AU32: 274 | AV32: 0.1846896338 | AW32: 134208 | AX32: 90.46286997 | AY32: 2114 | AZ32: 1.424941189 | BA32: 13 | BB32: 0.008762646859 | BC32: 11316 | BD32: 7.627547066 | BE32: 22 | BF32: 0.01482909468 | BH32: 0 | BI32: 10724 | BJ32: 10.52262226 | BK32: 37164 | BL32: 36.46612587 | BM32: 125800 | BN32: 123.4376987 | BO32: 24421 | BP32: 23.96241685 | BR32: 0
A33: lubelska | B33: zamojski | C33: 234171.33 | D33: 46.84566917 | E33: 17600.195 | F33: 3.520896057 | G33: 49842.26 | H33: 9.970879111 | I33: 198264.505 | J33: 39.66255566 | K33: 499878.29 | L33: 196362 | M33: 35.95537108 | N33: 5461.270294 | O33: 96284 | P33: 49.03392713 | Q33: 100078 | R33: 50.96607287 | S33: 44237 | T33: 22.52828959 | U33: 152125 | V33: 77.47171041 | W33: 156 | X33: 0.07944510649 | Y33: 1246 | Z33: 0.6345423249 | AA33: 613 | AB33: 49.19743178 | AC33: 633 | AD33: 50.80256822 | AE33: 43726 | AF33: 22.26805594 | AG33: 21107 | AH33: 48.27105155 | AI33: 22619 | AJ33: 51.72894845 | AK33: 150901 | AL33: 76.84837188 | AM33: 74075 | AN33: 49.08847523 | AO33: 76826 | AP33: 50.91152477 | AQ33: 142 | AR33: 0.07231541744 | AS33: 126 | AT33: 0.06416720139 | AU33: 65 | AV33: 0.1846896338 | AW33: =654340/8 -> 81792.5 | AX33: 64.00696472 | AY33: =6512/8 -> 814 | AZ33: 0.6369981268 | BA33: =1918/8 -> 239.75 | BB33: 0.1877148964 | BC33: =142527/8 -> 17815.875 | BD33: 13.9418661 | BE33: =167/8 -> 20.875 | BF33: 0.01633579348 | BG33: =230000/8 -> 28750 | BH33: 22.49839821 | BI33: 19913 | BJ33: 19.53906911 | BK33: 78560 | BL33: 77.08478227 | BM33: 84769 | BN33: 83.17718824 | BO33: 36454 | BP33: 35.76945841 | BR33: 0
A34: lubelska | B34: lubelski | C34: 226861.09 | D34: 50.19291079 | E34: 141057.26 | F34: 31.20885326 | G34: 44366.57 | H34: 9.816083005 | I34: 39693.43 | J34: 8.78215295 | K34: 451978.35 | L34: 181280 | M34: 36.71156207 | N34: 4937.953869 | O34: 87842 | P34: 48.45653133 | Q34: 93438 | R34: 51.54346867 | S34: 50380 | T34: 27.79126214 | U34: 130900 | V34: 72.20873786 | W34: 284 | X34: 0.1566637246 | Y34: 3000 | Z34: 1.6548985 | AA34: 1588 | AB34: 52.93333333 | AC34: 1412 | AD34: 47.06666667 | AE34: 47726 | AF34: 26.3272286 | AG34: 22376 | AH34: 46.88429787 | AI34: 25350 | AJ34: 53.11570213 | AK34: 129351 | AL34: 71.35425861 | AM34: 62675 | AN34: 48.45343291 | AO34: 66676 | AP34: 51.54656709 | AQ34: 70 | AR34: 0.03861429832 | AS34: 535 | AT34: 0.2951235658 | AU34: 314 | AV34: 0.1846896338 | AW34: =654340/8 -> 81792.5 | AX34: 64.00696472 | AY34: =6512/8 -> 814 | AZ34: 0.6369981268 | BA34: =1918/8 -> 239.75 | BB34: 0.1877148964 | BC34: =142527/8 -> 17815.875 | BD34: 13.9418661 | BE34: =167/8 -> 20.875 | BF34: 0.01633579348 | BG34: =230000/8 -> 28750 | BH34: 22.49839821 | BI34: 11682 | BJ34: 11.46263272 | BK34: 42838 | BL34: 42.03357819 | BM34: 14221 | BN34: 13.95395479 | BO34: 18040 | BP34: 17.70124074 | BR34: 0
A35: lubelska | B35: radzyński | C35: 165549.14 | D35: 41.36260497 | E35: 84204.56 | F35: 21.0385868 | G35: 95058.83 | H35: 23.75053615 | I35: 55426.14 | J35: 13.84827208 | K35: 400238.67 | L35: 119650 | M35: 27.36303464 | N35: 4372.687517 | O35: 59662 | P35: 49.86376933 | Q35: 59988 | R35: 50.13623067 | S35: 32935 | T35: 27.52611784 | U35: 86715 | V35: 72.47388216 | W35: 89 | X35: 0.07438361889 | Y35: 730 | Z35: 0.6101128291 | AA35: 383 | AB35: 52.46575342 | AC35: 347 | AD35: 47.53424658 | AE35: 32504 | AF35: 27.16590054 | AG35: 16223 | AH35: 49.91078021 | AI35: 16281 | AJ35: 50.08921979 | AK35: 86037 | AL35: 71.90722942 | AM35: 42677 | AN35: 49.60307775 | AO35: 43360 | AP35: 50.39692225 | AQ35: 38 | AR35: 0.03175929795 | AS35: 88 | AT35: 0.07354784789 | AU35: 164 | AV35: 0.1846896338 | AW35: 81792.5 | AX35: 64.00696472 | AY35: 814 | AZ35: 0.6369981268 | BA35: 239.75 | BB35: 0.1877148964 | BC35: 17815.875 | BD35: 13.9418661 | BE35: 20.875 | BF35: 0.01633579348 | BG35: 28750 | BH35: 22.49839821 | BI35: 11963 | BJ35: 11.73835604 | BK35: 52112 | BL35: 51.13342889 | BM35: 145230 | BN35: 142.5028377 | BO35: 26271 | BP35: 25.77767713 | BR35: 0
A36: lubelska | B36: krasnostawski | C36: 143549.06 | D36: 42.9842429 | E36: 93874.36 | F36: 28.10968106 | G36: 70305.95 | H36: 21.05237075 | I36: 26228.03 | J36: 7.853705293 | K36: 333957.4 | L36: 106924 | M36: 29.3058775 | N36: 3648.551386 | O36: 53132 | P36: 49.69136957 | Q36: 53792 | R36: 50.30863043 | S36: 18953 | T36: 17.72567431 | U36: 87971 | V36: 82.27432569 | W36: 130 | X36: 0.1215816842 | Y36: 1624 | Z36: 1.518835809 | AA36: 800 | AB36: 49.26108374 | AC36: 824 | AD36: 50.73891626 | AE36: 18528 | AF36: 17.32819573 | AG36: 9486 | AH36: 51.19818653 | AI36: 9042 | AJ36: 48.80181347 | AK36: 86451 | AL36: 80.85275523 | AM36: 42525 | AN36: 49.1897144 | AO36: 43926 | AP36: 50.8102856 | AQ36: 75 | AR36: 0.07014327934 | AS36: 27 | AT36: 0.02525158056 | AU36: 89 | AV36: 0.1846896338 | AW36: 81792.5 | AX36: 64.00696472 | AY36: 814 | AZ36: 0.6369981268 | BA36: 239.75 | BB36: 0.1877148964 | BC36: 17815.875 | BD36: 13.9418661 | BE36: 20.875 | BF36: 0.01633579348 | BG36: 28750 | BH36: 22.49839821 | BI36: 9165 | BJ36: 8.992897524 | BK36: 43438 | BL36: 42.62231126 | BM36: 96651 | BN36: 94.83606532 | BO36: 15616 | BP36: 15.32275916 | BR36: 0
A37: lubelska | B37: siedlecki | C37: 159891.74 | D37: 50.24320981 | E37: 89462.78 | F37: 28.11212903 | G37: 41065.04 | H37: 12.90397753 | I37: 27815.96 | J37: 8.74068363 | K37: 318235.52 | L37: 114250 | M37: 32.86080216 | N37: 3476.786703 | O37: 55186 | P37: 48.30284464 | Q37: 59064 | R37: 51.69715536 | S37: 22665 | T37: 19.8380744 | U37: 91585 | V37: 80.1619256 | W37: 94 | X37: 0.08227571116 | Y37: 561 | Z37: 0.4910284464 | AA37: 276 | AB37: 49.19786096 | AC37: 285 | AD37: 50.80213904 | AE37: 22322 | AF37: 19.53785558 | AG37: 11125 | AH37: 49.83872413 | AI37: 11197 | AJ37: 50.16127587 | AK37: 90029 | AL37: 78.8 | AM37: 42447 | AN37: 47.14814115 | AO37: 47582 | AP37: 52.85185885 | AQ37: 968 | AR37: 0.8472647702 | AS37: 170 | AT37: 0.1487964989 | AU37: 106 | AV37: 0.1846896338 | AW37: 81792.5 | AX37: 64.00696472 | AY37: 814 | AZ37: 0.6369981268 | BA37: 239.75 | BB37: 0.1877148964 | BC37: 17815.875 | BD37: 13.9418661 | BE37: 20.875 | BF37: 0.01633579348 | BG37: 28750 | BH37: 22.49839821 | BI37: 9000 | BJ37: 8.830995932 | BK37: 50073 | BL37: 49.1327177 | BM37: 90769 | BN37: 89.06451886 | BO37: 26000 | BP37: 25.51176603 | BR37: 0
A38: lubelska | B38: łukowski | C38: 137491.34 | D38: 45.11163487 | E38: 99024.3 | F38: 32.49039587 | G38: 36854.44 | H38: 12.09213643 | I38: 31410.14 | J38: 10.30583284 | K38: 304780.22 | L38: 109581 | M38: 32.90933337 | N38: 3329.78486 | O38: 54963 | P38: 50.1574178 | Q38: 54618 | R38: 49.8425822 | S38: 17905 | T38: 16.33951141 | U38: 91676 | V38: 83.66048859 | W38: 80 | X38: 0.07300535677 | Y38: 526 | Z38: 0.4800102207 | AA38: 311 | AB38: 59.12547529 | AC38: 215 | AD38: 40.87452471 | AE38: 17599 | AF38: 16.06026592 | AG38: 8757 | AH38: 49.75850901 | AI38: 8842 | AJ38: 50.24149099 | AK38: 90811 | AL38: 82.87111817 | AM38: 45250 | AN38: 49.82876524 | AO38: 45561 | AP38: 50.17123476 | AQ38: 380 | AR38: 0.3467754446 | AS38: 81 | AT38: 0.07391792373 | AU38: 104 | AV38: 0.1846896338 | AW38: 81792.5 | AX38: 64.00696472 | AY38: 814 | AZ38: 0.6369981268 | BA38: 239.75 | BB38: 0.1877148964 | BC38: 17815.875 | BD38: 13.9418661 | BE38: 20.875 | BF38: 0.01633579348 | BG38: 28750 | BH38: 22.49839821 | BI38: 6539 | BJ38: 6.416209156 | BK38: 34728 | BL38: 34.07586964 | BM38: 75419 | BN38: 74.00276469 | BO38: 19681 | BP38: 19.31142566 | BR38: 0
A39: lubelska | B39: hrubieszowski | C39: 147425.27 | D39: 55.90001437 | E39: 54885.54 | F39: 20.81123863 | G39: 38834.98 | H39: 14.72526345 | I39: 22584.5 | J39: 8.56348355 | K39: 263730.29 | L39: 114804 | M39: 39.84442938 | N39: 2881.306164 | O39: 56295 | P39: 49.03574788 | Q39: 58509 | R39: 50.96425212 | S39: 22273 | T39: 19.40089195 | U39: 92531 | V39: 80.59910805 | W39: 80 | X39: 0.06968398314 | Y39: 593 | Z39: 0.516532525 | AA39: 251 | AB39: 42.32715008 | AC39: 342 | AD39: 57.67284992 | AE39: 21913 | AF39: 19.08731403 | AG39: 10805 | AH39: 49.30862958 | AI39: 11108 | AJ39: 50.69137042 | AK39: 92051 | AL39: 80.18100415 | AM39: 44992 | AN39: 48.87725283 | AO39: 47059 | AP39: 51.12274717 | AQ39: 6 | AR39: 0.005226298735 | AS39: 67 | AT39: 0.05836033588 | AU39: 94 | AV39: 0.1846896338 | AW39: 81792.5 | AX39: 64.00696472 | AY39: 814 | AZ39: 0.6369981268 | BA39: 239.75 | BB39: 0.1877148964 | BC39: 17815.875 | BD39: 13.9418661 | BE39: 20.875 | BF39: 0.01633579348 | BG39: 28750 | BH39: 22.49839821 | BI39: 23891 | BJ39: 23.44236931 | BK39: 42324 | BL39: 41.5292302 | BM39: 114567 | BN39: 112.4156346 | BO39: 18333 | BP39: 17.98873871 | BR39: 0
A40: lubelska | B40: bialski | C40: 136582.85 | D40: 53.04229547 | E40: 58528.68 | F40: 22.72976101 | G40: 30132.82 | H40: 11.70215691 | I40: 32253.65 | J40: 12.52578661 | K40: 257498 | L40: 79444 | M40: 28.23955485 | N40: 2813.21715 | O40: 39012 | P40: 49.10628871 | Q40: 40432 | R40: 50.89371129 | S40: 19187 | T40: 24.15160365 | U40: 60257 | V40: 75.84839635 | W40: 113 | X40: 0.142238558 | Y40: 891 | Z40: 1.121544736 | AA40: 399 | AB40: 44.78114478 | AC40: 492 | AD40: 55.21885522 | AE40: 18725 | AF40: 23.57006193 | AG40: 9023 | AH40: 48.18691589 | AI40: 9702 | AJ40: 51.81308411 | AK40: 59529 | AL40: 74.93202759 | AM40: 29291 | AN40: 49.20458936 | AO40: 30238 | AP40: 50.79541064 | AQ40: 0 | AR40: 0 | AS40: 66 | AT40: 0.08307738785 | AU40: 120 | AV40: 0.1846896338 | AW40: 81792.5 | AX40: 64.00696472 | AY40: 814 | AZ40: 0.6369981268 | BA40: 239.75 | BB40: 0.1877148964 | BC40: 17815.875 | BD40: 13.9418661 | BE40: 20.875 | BF40: 0.01633579348 | BG40: 28750 | BH40: 22.49839821 | BI40: 5187 | BJ40: 5.089597322 | BK40: 35967 | BL40: 35.29160341 | BM40: 81056 | BN40: 79.53391181 | BO40: 17247 | BP40: 16.92313187 | BR40: 0
C41: =SUM(C8:C12) -> 643820.79
